Cogmind - Beta 13 @@@ ROGUE MODE // 2024.04.24 @ 21:20:51 Player: Tenderz Result: Destroyed by G-47 Trooper with Particle Gun Performance ------------- Evolutions (2) 1000 Regions Visited (5) 1000 Robots Destroyed (54) 270 Value Destroyed (1114) 1114 Prototype IDs (1) 20 Alien Tech Used (0) 0 Bonus (0) 0 TOTAL SCORE: 3404 Bonus ------- None Cogmind --------- Core Integrity 0/550 Matter 259/300 Energy 94/100 System Corruption 2% Temperature Cool (9) Movement Rolling (110) Ox2 Location -8/Materials Parts ------- > --- POWER (1) -------- (None) > --- PROPULSION (3) --- Light Treads Carbon-fiber Leg Wheel > --- UTILITY (5) ------ Improved Heat Sink Improved Heat Sink Large Storage Unit Melee Analysis Suite > --- WEAPON (2) ------- Heavy Assault Rifle > --- INVENTORY (15) --- Wheel Heat Sink Advanced Heat Sink High-capacity Storage Unit High-capacity Matter Pod (200) High-powered Tractor Beam Beam Rifle Particle Gun Particle Gun Particle Gun Particle Gun Assault Rifle Light Assault Rifle Peak State ------------ > --- POWER ------------ Light Angular Momentum Engine > --- PROPULSION ------- Aluminum Leg Aluminum Leg Carbon-fiber Leg > --- UTILITY ---------- Improved Heat Sink Improved Heat Sink Large Storage Unit Melee Analysis Suite > --- WEAPON ----------- Beam Cannon Beam Cannon > --- INVENTORY -------- Light Ion Engine Heat Sink Advanced Heat Sink High-capacity Storage Unit High-capacity Matter Pod High-powered Tractor Beam Particle Gun Particle Gun Particle Gun Assault Rifle Heavy Assault Rifle [Rating: 24] Favorites ----------- Power Light Ion Engine Engine Light Ion Engine Power Core Light Nuclear Core Propulsion Aluminum Leg Treads Light Treads Leg Aluminum Leg Wheel Wheel Utility Seismic Detector Device Seismic Detector Storage Large Storage Unit Processor Melee Analysis Suite Protection Weapon Shielding Weapon Beam Cannon Energy Gun EM Pulse Gun Energy Cannon Beam Cannon Ballistic Gun Assault Rifle Special Weapon Mining Laser Impact Weapon Hammer Slashing Weapon Scythe Build | -11 -10 -10 -10 -9 -8 ------- Run | Yrd Mat Min Exi Min Mat Slots Evolved 4 | . . . . . 4 Power . | . . . . . . Propulsion 1 | . . . . . 1 Utility 3 | . . . . . 3 Weapon . | . . . . . . Parts Attached 69 | 9 12 . 3 4 41 Power 11 | 1 2 . . 1 7 Engine 8 | 1 2 . . . 5 Core 3 | . . . . 1 2 Reactor . | . . . . . . Propulsion 29 | 3 2 . 2 2 20 Treads 1 | . . . . . 1 Leg 15 | 1 2 . . . 12 Wheel 13 | 2 . . 2 2 7 Hover . | . . . . . . Flight . | . . . . . . Utility 13 | 2 . . 1 1 9 Device 6 | 1 . . . 1 4 Storage 3 | 1 . . 1 . 1 Processor 1 | . . . . . 1 Hackware . | . . . . . . Protection 3 | . . . . . 3 Artifact . | . . . . . . Weapon 16 | 3 8 . . . 5 Energy Gun 2 | 1 1 . . . . Energy Cannon 4 | . 2 . . . 2 Ballistic Gun 6 | 2 2 . . . 2 Ballistic Cannon . | . . . . . . Launcher . | . . . . . . Special Weapon 2 | . 2 . . . . Impact Weapon 1 | . 1 . . . . Slashing Weapon 1 | . . . . . 1 Piercing Weapon . | . . . . . . Special Melee Weapon . | . . . . . . Unidentified Prototypes 1 | . . . . 1 . Parts Lost 25 | . . . . 1 24 Power 6 | . . . . . 6 Propulsion 11 | . . . . . 11 Utility 4 | . . . . 1 3 Weapon 4 | . . . . . 4 Highest Loss Streak 11 | . . . . 1 11 To Critical Strikes . | . . . . . . Average Slot Usage (%) 92 | . 100 100 100 100 77 Engine 10 | . 14 14 14 9 5 Core 1 | . . . . 4 1 Leg 13 | . 13 28 15 . 16 Wheel 12 | . 14 . 12 28 3 Device 14 | . 14 14 14 14 14 Storage 12 | . 14 14 14 14 9 Processor 2 | . . . . . 7 Energy Cannon 10 | . 7 14 14 14 10 Ballistic Gun 4 | . 11 . . . 3 Impact Weapon 8 | . 6 14 14 14 1 Naked Turns . | . . . . . . Heaviest Build 37 | 14 15 14 29 31 37 Greatest Support 35 | 20 20 20 20 26 35 Greatest Overweight (x) 9 | 1 . . 1 1 9 Average Overweight (x) . | . . . . 1 1 Largest Inventory Capacity 15 | 8 8 8 15 15 15 Average Capacity 11 | 7 8 8 11 15 15 Most Carried 15 | 8 8 8 8 15 14 Average Carried 9 | 5 7 8 8 10 11 Final Capacity 15 | 8 8 8 15 15 15 Final Carried 14 | 8 8 8 8 14 13 Class Distribution -------------------- 74% | Mutant 25% | Scavenger-Mutant Dominant Class ---------------- Mutant | -10/Materials Mutant | -10/Mines Mutant | -10/Exiles Mutant | -9/Mines Scavenger-Mutant | -8/Materials Resources | -11 -10 -10 -10 -9 -8 ----------- Run | Yrd Mat Min Exi Min Mat Matter Collected 1260 | 348 168 24 250 72 398 Remotely 20 | . . . . . 20 Salvage Created 2071 | 135 231 . . 290 1415 Parts 98 | 10 23 . . 10 55 Haulers Intercepted 2 | . 2 . . . . Recyclers Shooed 1 | . . . . . 1 Parts Field Recycled . | . . . . . . Retrieved Matter . | . . . . . . Parts Self-Destructed . | . . . . . . Prevented . | . . . . . . Kills | -11 -10 -10 -10 -9 -8 ------- Run | Yrd Mat Min Exi Min Mat Combat Hostiles Destroyed 33 | . 6 . . 5 22 Melee 10 | . . . . 4 6 Guns 13 | . 6 . . . 7 Cannons 9 | . . . . . 9 Classes Destroyed 10 | 2 3 . . 2 3 Worker 3 | 1 . . . 1 1 Tunneler 6 | 5 . . . 1 . Hauler 2 | . 2 . . . . Recycler 7 | . . . . 2 5 Mechanic 1 | . . . . . 1 Watcher 2 | . 1 . . . 1 Swarmer 15 | . 6 . . 3 6 Grunt 14 | . . . . 2 12 Brawler 1 | . . . . . 1 Sentry 3 | . . . . . 3 Best Kill Streak 8 | 3 4 . . 4 8 Combat Bots Only 4 | . 3 . . 3 4 Max Kills in Single Turn 1 | 1 1 . . 1 1 Gunslinging . | . . . . . . Exploded . | . . . . . . Melee 1 | . . . . 1 1 Uniques/NPCs Destroyed . | . . . . . . Combat | -11 -10 -10 -10 -9 -8 -------- Run | Yrd Mat Min Exi Min Mat Hostile Shots Fired 327 | . 39 . . 37 251 Missed 80 | . 6 . . 8 66 Damage Taken 2890 | . 278 . . 268 2344 Core 663 | . 61 . . 49 553 Absorbed by Shields . | . . . . . . Redirected to Shielding 50 | . . . . . 50 Regen/Repaired (Parts) 82 | . . . . . 82 Core Remaining (%) 78 | 100 . . . 56 . Volleys Fired 128 | 18 40 . . . 70 Largest 2 | 2 2 . . . 2 Hottest 120 | 60 100 . . . 120 Shots Fired 237 | 36 71 . . . 130 Gun 140 | 36 62 . . . 42 Cannon 88 | . . . . . 88 Launcher . | . . . . . . Special 9 | . 9 . . . . Kinetic 129 | 34 53 . . . 42 Thermal 97 | . 9 . . . 88 Explosive . | . . . . . . Electromagnetic 11 | 2 9 . . . . Robot Hit Streak 14 | 7 10 . . . 14 Robot Miss Streak 6 | 3 4 . . . 6 Penetration Max . | . . . . . . Secondary Targets 2 | . 2 . . . . Max Gunslinging Chain 1 | . 1 . . . . Shots Hit Robots 177 | 22 36 . . 19 100 Core Hits 73 | 7 15 . . 5 46 Critical Kills 2 | . . . . 1 1 Critical Parts Destroyed . | . . . . . . Critical Strikes 2 | . . . . 1 1 Smash 2 | . . . . 1 1 Melee Attacks 52 | . 4 . . 23 25 Impact 37 | . 4 . . 23 10 Slashing 15 | . . . . . 15 Piercing . | . . . . . . Sneak Attacks 9 | . 1 . . 4 4 Combat Hostiles . | . . . . . . Follow-up Attacks 1 | . . . . . 1 Damage Inflicted 3250 | 242 445 . . 546 2017 Guns 993 | 242 388 . . . 363 Cannons 980 | . . . . . 980 Explosions . | . . . . . . Melee 1263 | . 57 . . 546 660 Ramming 14 | . . . . . 14 Kinetic 909 | 215 331 . . . 363 Thermal 980 | . . . . . 980 Explosive . | . . . . . . Electromagnetic 84 | 27 57 . . . . Impact 852 | . 57 . . 546 249 Slashing 411 | . . . . . 411 Piercing . | . . . . . . Highest Corruption 2 | . . . . . 2 Average Corruption 1 | . . . . . 1 Corruption Purged . | . . . . . . Corruption Blocked . | . . . . . . Effects 2 | . . . . . 2 Message Errors 1 | . . . . . 1 Heat Flow Errors 1 | . . . . . 1 Overload Shots . | . . . . . . Overflow Damage 263 | . 27 . . 110 126 Projectiles . | . . . . . . Explosions . | . . . . . . Melee 263 | . 27 . . 110 126 Knockbacks 3 | . . . . 2 1 Impact 3 | . . . . 2 1 Kinetic . | . . . . . . Secondary . | . . . . . . Self-Inflicted Damage 7 | . . . . . 7 Shots . | . . . . . . Rammed 3 | . 1 . . . 2 Targets Rammed 3 | . 1 . . . 2 Kicked . | . . . . . . Crushed . | . . . . . . Highest Temperature 245 | 20 60 . . . 245 Average Temperature 33 | 15 23 . . . 70 Received Heat Transfer 978 | . . . . 51 927 Siege Activations . | . . . . . . Robots Corrupted . | . . . . . . Combat Hostiles . | . . . . . . Parts Fried 8 | . 1 . . 7 . Impact Corruptions 9 | . 1 . . 7 1 Robots Melted . | . . . . . . Combat Hostiles . | . . . . . . Parts Melted 4 | . . . . . 4 Heat Transferred 2072 | . . . . . 2072 Parts Sabotaged . | . . . . . . Parts Stolen . | . . . . . . Parts Stripped . | . . . . . . Power Chain Reactions . | . . . . . . Alert | -11 -10 -10 -10 -9 -8 ------- Run | Yrd Mat Min Exi Min Mat Peak Influence 319 | 30 218 37 . 135 319 Initial 50 | . 19 37 . . 50 Average 107 | 10 112 37 . 59 150 Maximum Alert Level 1 | . 1 . . . 1 Low Security (%) 81 | 100 71 100 . 100 77 Level 1 18 | . 28 . . . 22 Level 2 . | . . . . . . Level 3 . | . . . . . . Level 4 . | . . . . . . Level 5 . | . . . . . . High Security . | . . . . . . Max Security . | . . . . . . Squads Dispatched 4 | . 2 . . . 2 Investigation 1 | . . . . . 1 Extermination . | . . . . . . Reinforcement 3 | . 2 . . . 1 Assault . | . . . . . . Garrison . | . . . . . . Intercept . | . . . . . . Searches Triggered . | . . . . . . Construction Impeded . | . . . . . . Haulers Reinforced . | . . . . . . Active Scanning Responses . | . . . . . . Cargo Convoy Interrupts . | . . . . . . Stealth | -11 -10 -10 -10 -9 -8 --------- Run | Yrd Mat Min Exi Min Mat Distress Signals 3 | . 1 . . . 2 Communications Jammed . | . . . . . . Distress Signals . | . . . . . . Times Spotted 50 | . 11 . . 5 34 Peak Tracking Total 9 | . 3 . . 3 9 Tactical Retreats 2 | . 1 . . . 1 Traps | -11 -10 -10 -10 -9 -8 ------- Run | Yrd Mat Min Exi Min Mat Traps Triggered 1 | . . . . . 1 Indirectly . | . . . . . . Trap Hack Attempts . | . . . . . . Triggered . | . . . . . . Disarmed . | . . . . . . Reprogrammed . | . . . . . . Reused . | . . . . . . Traps Extracted . | . . . . . . Installed . | . . . . . . Triggered . | . . . . . . Machines | -11 -10 -10 -10 -9 -8 ---------- Run | Yrd Mat Min Exi Min Mat Machines Disabled . | . . . . . . Max in Single Turn . | . . . . . . Machines Repaired . | . . . . . . Machines Dismantled . | . . . . . . Machines Sabotaged . | . . . . . . Overloaded Fab Kills . | . . . . . . Hacking | -11 -10 -10 -10 -9 -8 --------- Run | Yrd Mat Min Exi Min Mat Machines Accessed 11 | . 6 . 4 . 1 Terminals 4 | . 4 . . . . Fabricators . | . . . . . . Repair Stations 1 | . . . . . 1 Recycling Units 2 | . 2 . . . . Scanalyzers . | . . . . . . Garrison Access . | . . . . . . Total Hacks 27 | . 21 . 4 . 2 Successful 12 | . 6 . 4 . 2 Failed 15 | . 15 . . . . Catastrophic . | . . . . . . Database Lockouts . | . . . . . . Manual 10 | . 5 . 5 . . Terminals 17 | . 17 . . . . Fabricators . | . . . . . . Repair Stations 2 | . . . . . 2 Recycling Units 4 | . 4 . . . . Scanalyzers . | . . . . . . Garrison Access . | . . . . . . Terminal Hacks 8 | . 4 . 4 . . Record 4 | . . . 4 . . Robot Analysis 1 | . 1 . . . . Branch Access Points 1 | . 1 . . . . Security Status 1 | . 1 . . . . Hauler Manifests 1 | . 1 . . . . Fabricator Hacks . | . . . . . . Repair Station Hacks 2 | . . . . . 2 Scan Component 1 | . . . . . 1 Repair 1 | . . . . . 1 Recycling Unit Hacks 2 | . 2 . . . . Retrieve Components 2 | . 2 . . . . Scanalyzer . | . . . . . . Garrison Access Hacks . | . . . . . . Unauthorized Hacks . | . . . . . . Terminals . | . . . . . . Fabricators . | . . . . . . Repair Stations . | . . . . . . Recycling Units . | . . . . . . Scanalyzers . | . . . . . . Garrison Access . | . . . . . . Data Cores Recovered . | . . . . . . Used . | . . . . . . Hacking Detections 6 | . 5 . . . 1 Full Trace Events . | . . . . . . Feedback Events . | . . . . . . Feedback Blocked . | . . . . . . Robot Schematics Acquired . | . . . . . . Robots Built . | . . . . . . Authchips . | . . . . . . Time . | . . . . . . Total Robot Build Rating . | . . . . . . Part Schematics Acquired . | . . . . . . Parts Built . | . . . . . . Authchips . | . . . . . . Time . | . . . . . . Total Part Build Rating . | . . . . . . Parts Repaired 1 | . . . . . 1 Time 38 | . . . . . 38 Parts Recycled . | . . . . . . Recycled Matter . | . . . . . . Retrieved Matter . | . . . . . . Retrieved Components 9 | . 9 . . . . Parts Scanalyzed . | . . . . . . Part Schematics Acquired . | . . . . . . Parts Damaged . | . . . . . . Bothacking | -11 -10 -10 -10 -9 -8 ------------ Run | Yrd Mat Min Exi Min Mat Used RIF Installer . | . . . . . . Robots Hacked . | . . . . . . Non-combat . | . . . . . . Combat . | . . . . . . Robot Hacks Applied . | . . . . . . Relay Couplers Released . | . . . . . . Fabnet Peak Effective % . | . . . . . . Robots Rewired . | . . . . . . Allies Hacked . | . . . . . . Hacks Repelled . | . . . . . . Allies | -11 -10 -10 -10 -9 -8 -------- Run | Yrd Mat Min Exi Min Mat Total Allies . | . . . . . . Largest Group . | . . . . . . Highest-Rated Group . | . . . . . . Highest-Rated Ally . | . . . . . . Total Orders . | . . . . . . Ally Attacks . | . . . . . . Total Damage . | . . . . . . Kills . | . . . . . . Allies Corrupted . | . . . . . . Allies Melted . | . . . . . . Intel | -11 -10 -10 -10 -9 -8 ------- Run | Yrd Mat Min Exi Min Mat Robot Analysis Total 1 | . 1 . . . . Derelict Logs Recovered 2 | . . 1 . 1 . Drone Launches . | . . . . . . Drone Recoveries . | . . . . . . Exploration | -11 -10 -10 -10 -9 -8 ------------- Run | Yrd Mat Min Exi Min Mat Turns Passed 2629 | 172 711 66 584 325 771 Spaces Moved 1610 | 113 501 56 540 168 232 Core 3 | 2 . . . . 1 Treads . | . . . . . . Legs 704 | 15 255 56 264 . 114 Wheels 903 | 96 246 . 276 168 117 Hover . | . . . . . . Flight . | . . . . . . Fastest Speed 50 | 50 80 120 95 95 105 Average Speed 108 | 87 100 120 107 100 144 Slowest Speed 500 | 120 120 120 120 105 500 Overloaded Moves . | . . . . . . Propulsion Burnouts . | . . . . . . Robots Hopped . | . . . . . . Cave-ins Triggered . | . . . . . . Exploration Rate (%) 42 | 5 80 14 92 38 23 Regions Visited 5 Branch Regions 3 Pre-discovered Areas 1 | . . 1 . . . Known Exits Taken 1 | . 1 . . . . Unknown Exits Taken 4 | 1 . 1 1 1 . Scrap Searched 1 | . . 1 . . . Spaces Dug 10 | . 10 . . . . Terrain Destroyed 10 | . 10 . . . . Melee 1 | . 1 . . . . Projectile 9 | . 9 . . . . AOE . | . . . . . . Terrain Rammed . | . . . . . . Walls Destroyed . | . . . . . . Machines Disabled . | . . . . . . Actions | -11 -10 -10 -10 -9 -8 --------- Run | Yrd Mat Min Exi Min Mat Total 2129 | 150 618 55 544 282 480 Wait 215 | 2 39 . 1 80 93 Move 1605 | 112 500 55 539 167 232 Hop . | . . . . . . Pick Up 41 | 9 10 . . 6 16 Fast Attach 18 | 6 1 . . . 11 Attach 19 | 1 . . . 1 17 Detach . | . . . . . . Swap 33 | 2 11 . 3 4 13 Drop 18 | . 12 . 1 1 4 Fire 128 | 18 40 . . . 70 Melee 49 | . 4 . . 23 22 Ram 3 | . 1 . . . 2 Kick . | . . . . . . Crush . | . . . . . . Escape Stasis . | . . . . . . Rewire . | . . . . . . Trap . | . . . . . . Miscellaneous . | . . . . . . Route ------- -11/Scrapyard -10/Materials (discovered 2 exits: [*Mat] / *Min) -10/Mines -10/Exiles -9/Mines -8/Materials History --------- Turn | Location | Event 9 | -11/Scrapyard | Discovered new exit (range 15) 173 | -11/Scrapyard | Entered Materials 311 | -10/Materials | Build established: Mutant 658 | -10/Materials | Discovered new exit (range 15) 679 | -10/Materials | Identified exit to Mines 884 | -10/Materials | Entered Mines 910 | -10/Mines | Learned location of Storage (-8) 946 | -10/Mines | Deemed a non-threat by the Exiles lab entrance 946 | -10/Mines | Discovered new exit (range 5) 950 | -10/Mines | Entered Exiles 950 | -10/Exiles | Found Exiles lab abandoned 1523 | -10/Exiles | Discovered new exit (range 14) 1534 | -10/Exiles | Entered Mines 1791 | -9/Mines | Learned location of 1 exit from Lower Caves 1813 | -9/Mines | Found a damaged Exp. Sensor Array with a note attached 1815 | -9/Mines | Found Prototype Device 1816 | -9/Mines | Identified Exp. Sensor Array 1847 | -9/Mines | Discovered new exit (range 8) 1859 | -9/Mines | Entered Materials 1859 | -8/Materials | Evolved 4 slots: Propulsion x1, Utility x3 1924 | -8/Materials | Lost 3 parts (1p2n) 2033 | -8/Materials | Core integrity fell below 50% 2050 | -8/Materials | Lost 11 parts (2p5n2u2w) 2325 | -8/Materials | Repaired Carbon-fiber Leg 2369 | -8/Materials | Build established: Scavenger-Mutant 2466 | -8/Materials | Core integrity fell below 20% 2506 | -8/Materials | Lost 3 parts (1p1n1w) 2630 | -8/Materials | Destroyed by G-47 Trooper with Particle Gun Last Messages --------------- 02572_ K-01 Serf cleans the Pressure Siphon. 02574_ Acquired 17 matter. 02576_ K-01 Serf collects debris. 02576_ Acquired Wheel. 02580_ K-01 Serf collects debris. 02582_ Aluminum Leg destroyed. 02582_ Y-45 Defender destroyed. 02584_ K-01 Serf collects debris. 02594_ System corrupted: Heat flow error (+290). 02604_ Aluminum Leg destroyed. 02604_ System corrupted by crushing effect (+1). 02606_ B-36 Bruiser destroyed. 02612_ G-47 Trooper destroyed. 02612_ Critical hit (Burn: +37). 02620_ Acquired Lgt. Treads. 02622_ Lgt. Ion Engine destroyed. 02624_ K-01 Serf collects debris. 02626_ Beam Cannon destroyed. 02628_ K-01 Serf collects debris. [Achievement: This Is Interesting...] Map ----- +----------------------------------------------------+ | ????????????????????????????????????????/ ???????? | | ????????????????????????????????????????# ??????? | | ????????????????????????????????????????# ?????? | | ????????????????????????????????????????# ^###### | | ????????????????????????????????????????? | | ????????????????????????????????????????? | | ????????????????????????????????????????# "" " | | ????????????????????????????????????##### "T " | | ???????????????????????????????????? "" " | | ???????????????????????????????????? | | ???????????????????????????????????? | | ?????????????????????????????????????#???####### | | ??????????????????????????????????? #?????????# | | ???????????????################### # ???????# | | ???????????????# " ???????# % | | ???????????????# ^ #?????????# | | ???????????##### #?????????# | | ?????????? #?????????# | | ?????????? ^ ! #?????????# | | ?????????? =%##########???????????# | | ??????????????## """^ *# % #???????????# | | ???????????????# """ k # """"" #???????????# | | ???????????????# """ # %"""" #???????????# | | ???????????????# """u m#=""""" %############# | | ???????????????# ^ [%g%""""" %+[ [%*! | | ???????????????# w @#!""""" ##############+ | | ???????????????# """ #=%"""% #?????????# | | ???????????????# """% #%%"""" #?????????# | | ???????????????# """ +%% #?????????# | | ???????????????? """ r##########?????????# | | ??????????????? #??????????????????# %! | | ????????????? r ??????????????????# *" | | ????????????+### ??????????????????# " | | ???????????????###+####### ??????????????????# " | | ?????????????????????????? ??????????????????# | | ??????????????????????????+#?????????????????#%### | | ?????????????????????????????????????????????###?? | | ?????????????????????????????????????????????????? | | ?????????????????????????????????????????????????? | | ?????????????????????????????????????????????????? | | ?????????????????????????????????????????????????? | | ?????????????????????????????????????????????????? | | ?????????????????????????????????????????????????? | | ?????????????????????????????????????????????????? | | ?????????????????????????????????????????????????? | | ?????????????????????????????????????????????????? | | ?????????????????????????????????????????????????? | | ?????????????????????????????????????????????????? | | ?????????????????????????????????????????????????? | | ?????????????????????????????????????????????????? | +----------------------------------------------------+ Best States ------------- Heat Dissipation 59 Energy Generation 18 Energy Capacity 250 Matter Stores 300 Matter Capacity 300 Sight Range 16 Terrain Scan Density 10 Armor Coverage 150 Weapon Shielding 33 Evasion (%) 55 Melee Accuracy 5 Item Schematics ----------------- None Robot Schematics ------------------ None Fabricated ------------ Nothing Alien Tech Used ----------------- None Achievements -------------- This Is Interesting... Challenges ------------ None Game ------ Seed WarpBattleCalibrator Manual? 0 Play Time 00:31:24 Cumulative 39.6 hours Start 2024.04.24 @ 20:48:10 End 2024.04.24 @ 21:20:51 Sessions 1 Manual Loads 0 Difficulty Rogue Special Mode None Game No. 29 Rogue 29 Adventurer 0 Explorer 0 Win Type - Total 0 Types 0/0/0/0/0/0/0/0/0 Lore% 25 Gallery% 40 Achievement% 31 Wizard Run 0 Options --------- Layout 2 ASCII 0 Keyboard 0 Movement Numpad Keybinds 0 Fullscreen 0 Font 36/Terminus Map View 50x44 Zoom Use 0% Tactical HUD 1 Map Filters NONE Filters NONE Steam 1 RUN: 57bcd5dc-27fb-47f4-bb96-06745196320c